bitfinex/quotes_ETHUSD_20240530
["timestamp","ask_amount","ask_price","bid_price","bid_amount"]
[1717088333131,0.00082368,3787.6,3787.2,0.06005533]
[1717088333660,0.00082368,3787.6,3787.3,0.05999809]
[1717088334073,0.00082368,3787.6,3786.6,3.91331623]
[1717088334223,0.00082368,3787.6,3786.6,2.64085]
[1717088334768,0.00082368,3787.6,3786.7,0.06034154]
[1717088342750,2.64027,3787.5,3786.7,0.06034154]
[1717088342950,2.64048,3787.2,3786.7,0.06034154]
[1717088343150,2.64062,3787.0,3786.1,12.21]
[1717088343391,0.55,3786.9,3786.8,0.05957265]
[1717088343601,0.61602476,3786.9,3786.1,12.21]
[1717088343970,2.64076,3786.8,3786.2,0.05991619]
[1717088344172,0.869076,3786.7,3786.2,0.05991619]
[1717088344560,0.869076,3786.7,3785.3,37.64175]
[1717088344775,0.869076,3786.7,3786.3,0.05781082]
[1717088344776,2.64096,3786.5,3786.3,0.05781082]
[1717088344971,0.61603885,3786.4,3785.3,37.64175]
[1717088345274,0.869076,3786.7,3785.4,0.05846192]
[1717088345450,0.2397076,3786.6,3785.4,0.05846192]
[1717088345777,0.55,3786.5,3785.4,0.05846192]
[1717088346099,2.64116,3786.3,3785.4,0.05846192]
[1717088346302,0.55,3786.2,3785.4,0.05846192]
[1717088348099,0.55,3786.2,3785.4,35.05846192]
[1717088350499,2.64125,3786.1,3785.4,35.05846192]
[1717088350661,0.55,3786.0,3785.4,35.05846192]
[1717088351478,0.55,3786.0,3785.4,37.70406955]
[1717088351682,0.55,3786.0,3785.5,2.64163]
[1717088351899,0.55,3786.0,3785.6,0.05855855]
[1717088352207,2.64099,3786.5,3785.6,0.05855855]
[1717088352398,2.64099,3786.5,3785.7,37.64149]
[1717088352601,1.528,3787.3,3786.1,2.64118]
[1717088352785,0.00082368,3787.6,3786.0,7.3]
[1717088352983,2.64044,3787.3,3786.4,2.64098]
[1717088353169,0.5708085,3787.2,3786.5,35.0]
[1717088353367,2.64044,3787.3,3786.5,36.7071861]
[1717088354212,0.57080752,3787.2,3786.5,36.7071861]
[1717088355778,0.55,3787.1,3786.5,36.7071861]
[1717088356388,2.64062,3787.0,3786.5,35.05794623]
[1717088356676,1.12080752,3786.9,3786.5,35.05794623]
[1717088356876,1.12080752,3786.9,3786.5,0.05794623]
[1717088357110,1.12080752,3786.9,3786.0,9.94128]
[1717088357111,1.12085339,3786.9,3786.0,9.94128]
[1717088357326,1.12085339,3786.9,3786.6,0.05782698]
[1717088357488,1.12085339,3786.9,3786.0,44.94128]
[1717088357824,1.12085339,3786.9,3786.2,2.64116]
[1717088358117,1.12085339,3786.9,3786.3,0.05799875]
[1717088358317,1.12085339,3786.9,3786.0,42.3]
[1717088358532,1.12085339,3786.9,3786.4,0.05795699]
[1717088358692,1.12085339,3786.9,3786.0,42.3]
[1717088358879,1.12085339,3786.9,3786.1,0.05812878]
[1717088359698,2.64076,3786.8,3786.1,0.05812878]
[1717088359898,2.64098,3786.5,3786.1,0.05812878]
[1717088360223,1.12085339,3786.4,3786.1,0.05812878]
[1717088360536,0.55,3786.3,3786.2,35.0]
[1717088360699,0.55,3786.3,3786.2,35.05795911]
[1717088360899,0.55,3786.4,3786.2,35.05795911]
[1717088361118,0.55,3786.4,3786.2,0.05795911]
[1717088361497,0.55,3786.4,3785.8,35.0]
[1717088361701,2.6411,3786.3,3785.9,0.05813092]
[1717088361942,1.12085339,3786.2,3785.9,0.05813092]
[1717088362232,1.12085339,3786.2,3786.0,0.05807365]
[1717088362585,1.12085339,3786.2,3785.7,35.0]
[1717088362896,1.12085339,3786.2,3786.1,0.05807257]
[1717088363055,1.12085339,3786.2,3785.7,35.0]
[1717088363260,1.12085339,3786.2,3786.1,0.05807257]
[1717088363466,1.12085339,3786.2,3785.7,37.64560763]
[1717088363746,0.55,3786.2,3785.7,37.64560763]
[1717088363952,0.55,3786.5,3785.8,0.05824439]
[1717088364965,2.64103,3786.4,3785.8,0.05824439]
[1717088365142,0.55,3786.3,3785.8,0.05824439]
[1717088365346,1.1209568,3786.3,3785.8,0.05824439]
[1717088366782,0.5709568,3786.3,3785.8,0.05824439]
[1717088366981,0.41363799,3789.4,3788.1,2.63984]
[1717088367166,2.7648946,3790.0,3788.1,4.431824]
[1717088367481,2.7648946,3790.0,3788.1,2.96075181]
[1717088367654,0.27579592,3789.7,3788.3,2.63965]
[1717088367869,0.27579592,3789.7,3788.4,0.85580278]
[1717088368056,0.27579592,3789.7,3788.5,0.85580278]
[1717088368251,0.27579592,3789.7,3788.6,3.85047252]
[1717088368469,0.27579592,3789.7,3788.7,0.28526759]
[1717088368650,0.27579592,3789.7,3788.8,0.28526759]
[1717088368841,0.27579592,3789.7,3788.9,0.28526759]
[1717088369042,0.27579592,3789.7,3789.0,0.28526759]
[1717088369241,0.27579592,3789.7,3789.2,2.63902]
[1717088369454,2.63765,3791.3,3789.2,2.63902]
[1717088369455,1.528,3790.6,3789.3,0.28526759]
[1717088369672,2.63765,3791.3,3790.5,1.57610413]
[1717088369974,2.63765,3791.3,3789.2,2.93703527]
[1717088369975,2.63765,3791.3,3790.6,1.91591135]
[1717088370176,2.63729,3791.8,3790.7,0.28526759]
[1717088370347,0.27571698,3791.2,3790.7,0.28526759]
[1717088370557,1.528,3791.1,3790.8,1.91571277]
[1717088370754,0.4441327,3791.0,3790.9,0.28519101]
[1717088371135,0.4441327,3791.0,3790.9,0.33984063]
[1717088371387,0.4441327,3791.0,3790.9,0.05464962]
[1717088371542,1.9721327,3791.0,3790.9,0.05464962]
[1717088371744,2.63795,3790.9,3790.3,1.57581502]
[1717088371990,2.03808841,3791.0,3789.5,2.63883]
[1717088371991,1.528,3790.5,3790.4,0.28516825]
[1717088372186,1.528,3790.5,3787.9,2.63996]
[1717088372187,2.63827,3790.4,3789.7,1.57581502]
[1717088372479,0.06596632,3790.3,3789.6,1.57581502]
[1717088372631,0.55,3790.2,3789.7,1.86103171]
[1717088372836,0.97322363,3790.2,3789.8,0.28521669]
[1717088373031,1.528,3790.0,3789.6,1.57581502]
[1717088373240,0.61596879,3789.9,3789.7,0.28522021]
[1717088373487,0.80012236,3789.9,3789.7,0.0526503]
[1717088373841,0.86609109,3789.9,3789.5,1.57581502]
[1717088374067,0.80012236,3789.9,3789.6,0.28522313]
[1717088374269,0.23281224,3789.8,3789.4,1.57581502]
[1717088374470,0.23281224,3789.8,3789.5,0.28522529]
[1717088374638,0.23281224,3789.8,3789.4,1.57581502]
[1717088374639,0.55,3789.7,3789.4,1.57581502]
[1717088374839,0.55,3789.7,3789.6,0.05270747]
[1717088375476,0.55,3789.7,3789.3,1.57581502]
[1717088375782,0.55,3789.7,3789.4,0.28522784]
[1717088375981,0.55,3789.7,3789.5,0.28522784]
[1717088376177,0.55,3789.7,3789.4,0.0528218]
[1717088376339,0.55,3789.7,3789.6,0.05270747]
[1717088376540,0.55,3789.7,3789.5,0.05276463]
[1717088376787,0.78108122,3789.7,3789.6,0.05270747]
[1717088377086,0.78108122,3789.7,3789.2,1.57581502]
[1717088377293,0.78108122,3789.7,3789.6,0.05080441]
[1717088377490,0.78108122,3789.7,3789.0,0.28525899]
[1717088377785,2.6388,3789.6,3788.5,2.63952]
[1717088378089,2.6388,3789.6,3789.1,0.05119635]
[1717088378090,0.89198812,3789.5,3789.1,0.05119635]
[1717088378294,0.89198812,3789.5,3788.5,2.63952]
[1717088378771,0.89198812,3789.5,3788.6,0.05148228]
[1717088379588,2.63896,3789.4,3788.6,0.05148228]
[1717088379891,2.63908,3789.2,3788.3,7.3]
[1717088380202,0.55,3789.1,3788.3,7.3]
[1717088380346,0.55,3789.1,3788.4,0.04993214]
[1717088381544,2.63924,3789.0,3788.4,0.04993214]
[1717088381846,0.80589481,3789.3,3788.4,0.04993214]
[1717088381847,1.528,3788.7,3788.4,0.04993214]
[1717088382081,0.55,3788.6,3788.4,0.04993214]
[1717088382458,0.55,3788.6,3787.6,7.3]
[1717088382806,0.55,3788.6,3787.7,0.0503326]
[1717088383884,2.63957,3788.5,3787.7,0.0503326]
[1717088384098,0.55,3788.4,3787.7,0.0503326]
[1717088384247,1.092037,3788.4,3787.7,0.0503326]
[1717088384945,2.63971,3788.3,3787.7,0.0503326]
[1717088385145,0.55,3788.2,3787.7,0.0503326]
[1717088385431,2.63985,3788.1,3787.7,0.0503326]
[1717088385562,0.55,3788.0,3787.7,0.0503326]
[1717088385758,0.55,3788.0,3787.2,12.21]
[1717088385967,0.55,3788.0,3787.8,0.05057059]
[1717088386140,0.55,3788.0,3787.2,12.21]
[1717088386141,1.04936857,3788.0,3787.2,12.21]
[1717088386542,1.04936857,3788.0,3787.3,0.05085671]
[1717088387303,0.27583568,3788.3,3787.3,0.05085671]
[1717088388101,2.63979,3788.2,3787.3,0.05085671]
[1717088388757,0.55,3788.1,3787.3,0.05085671]
[1717088389362,0.55,3788.1,3787.1,7.3]
[1717088389611,0.89656257,3788.1,3787.4,0.04996328]
[1717088389906,2.63995,3788.0,3787.4,0.04996328]
[1717088390204,0.55,3787.9,3787.1,7.3]
[1717088390424,2.64007,3787.8,3787.1,7.3]
[1717088390612,0.55,3787.7,3786.7,7.3]
[1717088393783,2.64023,3787.6,3786.7,7.3]
[1717088393981,0.55,3787.5,3786.7,7.3]
[1717088396209,2.64034,3787.4,3786.7,7.3]
[1717088396430,0.55,3787.3,3786.7,7.3]
[1717088397589,2.99374326,3787.8,3786.7,8.21636054]
[1717088397590,2.64008,3787.8,3786.7,8.21636054]
[1717088398089,2.64008,3787.8,3786.8,35.0]
[1717088398617,2.64008,3787.8,3786.7,8.21636054]
[1717088398787,1.528,3788.2,3786.8,2.64071]
[1717088398788,2.63981,3788.2,3786.8,2.64071]
[1717088398994,0.27583568,3788.3,3786.9,1.2720665]
[1717088399185,0.27583568,3788.3,3787.0,36.86323482]
[1717088399384,0.27583568,3788.3,3787.3,2.6404]
[1717088399586,2.63845,3790.2,3787.3,2.6404]
[1717088399587,0.41349461,3790.8,3788.2,2.63976]
[1717088399804,3.340326,3791.4,3789.3,2.639]
[1717088399805,1.528,3791.1,3789.3,2.639]
[1717088400039,0.1528,3791.0,3789.4,35.0]
[1717088400391,0.1528,3791.0,3789.4,36.57787017]
[1717088400728,0.1528,3791.0,3789.5,1.86323482]
[1717088401347,0.1528,3791.0,3789.6,0.28536465]
[1717088401555,1.528,3790.6,3789.6,0.28536465]
[1717088401840,1.528,3790.6,3789.2,1.57787017]
[1717088402041,1.528,3790.6,3789.3,0.28536465]
[1717088402328,1.528,3790.6,3788.7,2.63936]
[1717088402329,1.528,3790.6,3789.0,1.57787017]
[1717088402489,1.528,3790.6,3788.8,0.28536465]
[1717088402490,1.528,3790.6,3789.1,1.86323482]
[1717088402692,0.4528,3790.5,3789.0,1.57787017]
[1717088403016,1.528,3790.2,3789.1,0.28536465]
[1717088403190,0.55,3790.1,3788.9,0.28536465]
[1717088403633,1.528,3789.8,3788.8,0.28536465]
[1717088403948,1.528,3789.3,3788.6,1.57787017]
[1717088404095,1.528,3789.3,3787.7,2.64008]
[1717088404096,4.16703,3789.3,3787.8,1.86323482]
[1717088404293,0.7028,3789.2,3787.9,0.28536465]
[1717088405487,0.7028,3789.2,3788.0,0.28536465]
[1717088405723,3.7028,3789.2,3788.0,0.28536465]
[1717088405902,3.7028,3789.2,3787.8,1.57787017]
[1717088405903,2.63916,3789.1,3787.9,0.28536465]
[1717088406236,0.55,3789.0,3787.9,0.28536465]
[1717088406437,4.3439,3789.6,3787.9,0.28536465]
[1717088406736,3.0,3789.5,3788.2,1.57787017]
[1717088406909,2.3089,3789.6,3788.5,2.6395]
[1717088407309,2.3089,3789.6,3788.4,1.86323482]
[1717088407310,2.3089,3789.6,3788.4,0.28536465]
[1717088407626,2.3089,3789.6,3788.3,0.18632348]
[1717088408470,0.55,3789.5,3788.3,0.18632348]
[1717088409335,0.55,3789.5,3788.1,2.63984]
[1717088409575,3.55,3789.5,3788.1,2.63984]
[1717088412436,6.18893,3789.5,3788.1,2.63984]
[1717088412779,6.18893,3789.5,3787.7,2.6401]
[1717088412780,2.63934,3788.9,3787.7,2.6401]
[1717088412981,0.55,3788.8,3787.7,2.6401]
[1717088413190,3.55,3788.8,3787.7,2.6401]
[1717088413875,3.55,3788.8,3787.9,2.63997]
[1717088414083,3.0,3789.2,3787.9,2.63997]
[1717088414374,3.0,3789.2,3788.0,0.263997]
[1717088414375,0.55,3789.1,3788.0,0.263997]
[1717088414587,0.55,3789.1,3787.7,2.64012]
[1717088414588,2.63924,3789.0,3787.7,2.64012]
[1717088414742,3.55,3788.9,3787.7,2.64012]
[1717088418311,3.55,3788.9,3787.8,0.04612763]
[1717088418516,4.168924,3788.9,3787.8,0.04612763]
[1717088418723,4.168924,3788.9,3787.9,2.63997]
[1717088418903,3.0,3788.9,3787.9,2.68610012]
[1717088419078,2.63903,3789.3,3787.9,2.68610012]
[1717088419390,3.0,3789.2,3787.9,2.68610012]
[1717088419593,0.65817823,3789.1,3787.9,3.68471013]
[1717088419794,3.0,3789.2,3787.9,3.68471013]
[1717088420190,3.0,3789.2,3788.2,2.63973]
[1717088420404,0.849783,3789.4,3788.2,2.63973]
[1717088420605,0.355,3790.0,3788.7,2.63938]
[1717088421123,0.355,3790.0,3788.9,2.63928]
[1717088421477,0.355,3790.0,3789.0,0.04545474]
[1717088422176,2.6382,3790.5,3789.1,2.63912]
[1717088422642,3.0,3790.4,3789.3,2.63898]
[1717088422783,2.6382,3790.5,3789.3,2.63898]
[1717088422984,2.6382,3790.5,3789.4,0.31365808]
[1717088423240,2.6382,3790.5,3789.4,0.04522604]
[1717088423983,0.55,3790.4,3789.4,0.04522604]
[1717088424148,3.55,3790.4,3789.4,0.04522604]
[1717088424331,0.55,3790.4,3789.4,0.04522604]
[1717088424531,3.55,3790.4,3789.4,0.04522604]
[1717088424738,1.12232,3790.3,3789.4,0.04522604]
[1717088424951,0.55,3790.2,3789.3,2.63898]
[1717088425173,0.55,3790.2,3789.5,0.04516887]
[1717088425379,0.55,3790.2,3789.4,0.04522604]
[1717088425679,3.18833,3790.3,3789.5,0.04516887]
[1717088425839,3.0,3790.2,3789.3,2.63898]
[1717088426041,0.55,3790.1,3789.4,0.04522604]
[1717088426269,2.63852,3790.0,3789.4,0.04522604]
[1717088426470,3.55,3789.9,3789.1,7.3]
[1717088426642,4.676452,3789.9,3789.5,0.04516887]
[1717088426838,4.676452,3789.9,3789.1,7.3]
[1717088427046,4.676452,3789.9,3789.2,0.04429222]
[1717088427267,2.63867,3789.8,3789.2,0.04429222]
[1717088427470,1.4341122,3789.7,3789.2,0.04429222]
[1717088427783,2.63883,3789.6,3789.2,0.04429222]
[1717088427980,0.55,3789.5,3789.2,0.04429222]
[1717088428285,2.63894,3789.4,3789.2,0.04429222]
[1717088428679,2.63894,3789.4,3788.4,0.28521023]
[1717088428680,3.55,3789.3,3788.3,19.51]
[1717088428967,4.321494,3789.3,3788.3,7.3]
[1717088429788,2.6391,3789.2,3788.3,7.3]
[1717088430081,0.55,3789.1,3788.3,7.3]
[1717088431474,0.55,3789.1,3788.3,7.58525613]
[1717088431791,3.0,3789.3,3788.4,0.28525613]
[1717088432081,0.55,3789.2,3788.4,0.28525613]
[1717088432282,2.63895,3789.4,3788.3,10.0581618]
[1717088432443,2.63915,3789.1,3788.4,0.28524576]
[1717088432839,0.55,3789.0,3788.4,0.28524576]
[1717088433288,0.55,3789.0,3788.3,7.3]
[1717088434086,0.55,3789.0,3788.4,0.28526136]
[1717088434284,0.55,3789.0,3788.3,8.87787017]
[1717088434459,2.63915,3789.1,3788.4,0.28525456]
[1717088434664,3.0,3789.0,3788.4,2.92487456]
[1717088434864,2.63892,3789.5,3788.4,2.92487456]
[1717088435091,3.55,3789.4,3788.5,1.86312473]
[1717088435391,3.0,3789.4,3788.6,0.28525456]
[1717088435551,3.0,3789.6,3788.7,0.28525456]
[1717088435756,4.526,3789.8,3788.8,0.28525456]
[1717088436096,4.526,3789.8,3788.9,0.04451374]
[1717088436252,4.526,3789.8,3788.8,0.28522196]
[1717088436447,4.526,3789.8,3788.9,0.04451374]
[1717088437347,2.63873,3789.7,3788.9,0.04451374]
[1717088437549,3.55,3789.6,3788.9,0.04451374]
[1717088438161,3.55,3789.6,3788.6,1.57787017]
[1717088438373,3.55,3789.6,3789.0,0.04445655]
[1717088438575,3.55,3789.6,3788.8,0.28523104]
[1717088438891,3.55,3789.6,3788.7,0.28523104]
[1717088439118,3.55,3789.6,3788.9,0.04451374]
[1717088439319,3.55,3789.6,3788.8,0.04457092]
[1717088439481,1.526,3789.4,3789.0,0.04445655]
[1717088439811,1.526,3789.4,3788.5,1.57787017]
[1717088439812,0.55,3789.3,3788.5,1.57787017]
[1717088440010,0.55,3789.3,3789.1,0.04439937]
[1717088440299,0.55,3789.3,3789.2,0.0443422]
[1717088440504,0.55,3789.3,3788.6,0.28524083]
[1717088440705,0.55,3789.3,3789.2,0.0443422]
[1717088440988,0.55,3789.3,3788.5,0.28524288]
[1717088441348,0.55,3789.3,3788.6,0.0446853]
[1717088441549,1.321487,3789.3,3788.6,0.0446853]
[1717088441751,1.526,3789.0,3788.6,0.0446853]
[1717088442185,1.526,3789.0,3788.4,4.28525657]
[1717088442396,1.526,3789.0,3788.7,0.04462811]
[1717088442604,1.526,3789.0,3788.3,7.3]
[1717088442800,1.526,3789.0,3788.8,0.04457092]
[1717088443011,2.63929,3788.9,3788.2,4.28526795]
[1717088443320,3.55,3788.8,3788.3,0.04485689]
[1717088443801,3.55,3788.8,3788.2,0.28526893]
[1717088444011,3.55,3788.8,3788.1,1.57787017]
[1717088444012,3.55,3788.8,3788.4,0.04479969]
[1717088444176,3.0,3788.8,3788.3,0.04485689]
[1717088444381,3.0,3789.2,3788.4,0.19079911]
[1717088444706,1.526,3789.4,3788.5,0.28526404]
[1717088444926,0.55,3789.3,3788.5,0.28526404]
[1717088445099,3.55,3789.3,3788.6,0.04475271]
[1717088445306,4.321497,3789.3,3788.6,0.04475271]
[1717088445633,4.321497,3789.3,3788.4,0.28524333]
[1717088445961,4.321497,3789.3,3788.2,1.57787017]
[1717088446160,2.63911,3789.2,3788.3,0.28525607]
[1717088446471,2.63911,3789.2,3788.2,1.57787017]
[1717088446472,2.3711,3789.0,3788.4,0.28525607]
[1717088446673,0.55,3788.9,3788.2,1.57787017]
[1717088446884,3.55,3788.9,3788.3,0.28526033]
[1717088447086,3.55,3788.9,3788.2,1.57787017]
[1717088447288,3.55,3788.9,3788.3,0.28526165]
[1717088447490,4.64348707,3788.9,3788.4,0.28526165]
[1717088447705,4.64348707,3788.9,3788.1,1.57787017]
[1717088447906,4.64348707,3788.9,3788.2,0.28527514]
[1717088448125,4.64348707,3788.9,3788.1,1.57787017]
[1717088448309,4.64348707,3788.9,3788.2,0.28527463]
[1717088448508,3.55,3788.9,3788.3,0.28527463]
[1717088448802,3.55,3788.9,3788.2,1.57787017]
[1717088449008,3.0,3788.9,3788.3,0.28526795]
[1717088449209,3.0,3788.9,3788.1,1.57787017]
[1717088449423,3.0,3788.9,3788.2,1.86314002]
[1717088449627,3.0,3788.9,3788.1,0.15778702]
[1717088449628,3.0,3788.9,3788.3,1.86314002]
[1717088449778,3.0,3788.9,3788.4,0.28526985]
[1717088449974,3.0,3788.9,3788.3,1.57787017]
[1717088450214,4.93825,3789.6,3788.1,0.15778702]
[1717088450215,1.526,3789.4,3788.4,1.86312642]
[1717088450418,0.55,3789.3,3788.5,0.28525625]
[1717088450632,0.55,3789.3,3788.6,0.28525625]
[1717088450915,0.55,3789.3,3788.7,0.32996139]
[1717088451237,0.55,3789.3,3788.7,0.04470514]
[1717088451519,0.55,3789.3,3788.6,1.57787017]
[1717088451725,0.55,3789.3,3788.7,0.28522637]
[1717088452021,3.0,3789.5,3788.7,0.18630965]
[1717088452230,3.0,3789.5,3788.8,0.28522412]
[1717088452392,3.0,3789.5,3788.8,0.04464796]
[1717088452794,3.0,3789.5,3788.7,0.18630965]
[1717088452997,1.526,3789.7,3788.8,0.28522722]
[1717088453244,0.55,3789.6,3788.9,0.28522722]
[1717088453539,0.55,3789.6,3789.0,0.32976081]
[1717088453719,0.55,3789.6,3789.0,0.04453359]
[1717088453720,3.55,3789.6,3789.0,0.04453359]
[1717088455520,3.55,3789.6,3788.8,1.57363429]
[1717088455682,3.55,3789.6,3789.1,0.04447641]
[1717088455882,0.8673497,3789.5,3788.9,1.57363429]
[1717088456083,0.8673497,3789.5,3789.0,0.32975159]
[1717088456282,0.8673497,3789.5,3789.1,0.28521902]
[1717088456499,3.55,3789.6,3789.2,0.04441923]
[1717088456997,3.55,3789.6,3788.6,0.28522751]
[1717088456998,2.63942,3788.7,3788.6,0.28522751]
[1717088457202,5.63942,3788.7,3788.0,1.57363429]
[1717088457439,0.813942,3788.6,3787.8,1.57363429]
[1717088457589,2.63957,3788.5,3787.9,0.28530661]
[1717088457785,2.63973,3788.3,3787.2,4.0]
[1717088457991,3.0,3788.2,3787.2,4.0]
[1717088458314,2.076,3788.1,3787.2,4.0]
[1717088459632,2.63992,3788.0,3787.2,4.0]
[1717088460969,2.63985,3788.1,3787.2,4.0]
[1717088461271,3.55,3788.0,3787.3,35.0]
[1717088462061,3.55,3788.0,3787.3,37.64560763]
[1717088462062,3.0,3788.0,3787.3,37.64560763]
[1717088462260,2.4844,3788.4,3787.3,37.64560763]
[1717088462261,1.526,3788.3,3787.3,37.64560763]
[1717088462570,3.0,3788.3,3787.3,37.64560763]
[1717088462771,3.0,3788.4,3787.3,37.64560763]
[1717088462955,2.63971,3788.3,3787.4,1.9484102]
[1717088463158,3.0,3788.2,3787.2,4.0]
[1717088463675,2.6399,3788.1,3787.3,35.0]
[1717088463877,3.0,3788.0,3787.3,35.0]
[1717088464557,3.0,3788.0,3787.4,0.03976829]
[1717088465092,3.0,3788.0,3787.2,4.0]
[1717088465238,3.0,3788.0,3787.5,35.03971106]
[1717088465439,4.526,3788.4,3787.5,35.03971106]
[1717088466244,3.0,3788.4,3787.5,35.03971106]
[1717088466442,3.0,3788.4,3787.6,0.05279406]
[1717088466670,2.63959,3788.5,3787.7,0.03966197]
[1717088466839,3.20400304,3791.0,3787.2,4.0]
[1717088466840,4.16599,3787.9,3787.2,4.0]
[1717088467188,4.16599,3787.9,3787.3,0.04001188]
[1717088467335,0.55,3787.8,3787.3,0.04001188]
[1717088468398,3.55,3787.8,3787.3,0.04001188]
[1717088470438,3.0,3787.8,3787.3,0.04001188]
[1717088470712,1.526,3788.6,3787.4,35.0469]
[1717088470865,1.526,3788.6,3787.4,35.08699497]
[1717088471294,1.526,3788.6,3787.5,0.05279146]
[1717088471517,2.63916,3789.1,3787.6,0.03998052]
[1717088471699,2.63916,3789.1,3787.7,4.0]
[1717088471879,2.63916,3789.1,3787.8,35.0]
[1717088472092,2.63916,3789.1,3787.9,0.0397262]
[1717088472334,2.63862,3789.9,3788.0,0.0469]
[1717088472518,1.526,3789.8,3788.0,0.0469]
[1717088472828,1.526,3789.8,3788.4,35.0]
[1717088472829,1.526,3789.0,3788.4,35.0]
[1717088473140,1.526,3789.0,3788.5,0.03924844]
[1717088474588,1.526,3788.6,3788.5,0.03924844]
[1717088474937,2.63958,3788.5,3787.7,4.0]
[1717088475091,1.526,3788.1,3787.7,39.0]
[1717088475433,1.526,3788.1,3787.8,0.03964889]
[1717088475761,2.64016,3787.7,3787.0,35.0]
[1717088475930,2.64016,3787.7,3786.5,4.0]
[1717088475931,1.526,3787.3,3786.5,4.0]
[1717088476225,1.526,3787.3,3787.1,0.04004948]
[1717088476446,1.526,3787.3,3786.6,35.0]
[1717088476648,3.0,3787.6,3786.7,4.0]
[1717088476942,3.0,3787.6,3786.7,6.68603792]
[1717088477151,3.0,3787.6,3786.8,0.0469]
[1717088477426,3.0,3787.6,3786.9,35.0]
[1717088477657,2.63987,3788.1,3787.0,4.0]
[1717088477989,2.63987,3788.1,3787.1,0.04028205]
[1717088478245,2.63987,3788.1,3787.2,35.40402821]
[1717088478539,2.63959,3788.5,3787.3,0.04015605]
[1717088478888,2.63959,3788.5,3787.4,4.0]
[1717088479085,3.0,3788.4,3787.5,35.04003967]
[1717088479291,3.0,3788.4,3787.6,2.64560763]
[1717088479598,3.0,3788.4,3787.7,0.03985219]
[1717088480022,3.0,3788.4,3787.8,35.0]
[1717088480297,3.0,3788.4,3787.9,0.0397243]
[1717088480896,3.0,3788.4,3788.0,35.0]
[1717088481209,3.0,3788.4,3788.1,0.03960988]
[1717088482240,4.16531,3788.9,3788.1,2.68521751]
[1717088482644,1.526,3789.0,3788.1,2.68521751]
[1717088483589,1.526,3789.1,3788.1,2.68521751]
[1717088483869,1.526,3789.1,3788.2,1.54438199]
[1717088484236,3.0,3789.2,3788.3,0.03951469]
[1717088484619,2.63956,3788.5,3788.3,0.03951469]
[1717088485074,2.63956,3788.5,3788.0,35.0]
[1717088485271,2.63956,3788.5,3788.4,0.03937293]
[1717088485489,2.63983,3788.2,3787.9,4.0]
[1717088485636,1.526,3788.1,3787.9,4.0]
[1717088486526,2.63991,3788.0,3787.9,4.0]
[1717088486973,2.63991,3788.0,3787.4,35.0]
[1717088487147,3.0,3787.9,3787.4,35.0]
[1717088488274,1.526,3787.6,3787.4,35.0]
[1717088488481,2.64026,3787.5,3787.4,35.0]
[1717088488775,5.64026,3787.5,3787.4,35.0]
[1717088490247,3.0,3787.5,3787.4,35.0]
[1717088490450,1.526,3787.6,3787.4,35.0]
[1717088491472,1.526,3787.6,3786.8,7.3]
[1717088491638,1.526,3787.6,3786.9,0.73]
[1717088491830,1.526,3787.6,3787.0,35.0]
[1717088492880,4.16623,3787.6,3787.0,35.0]
[1717088493079,3.0,3787.5,3787.0,35.0]
[1717088493878,1.526,3787.2,3787.0,35.0]
[1717088496187,1.526,3787.2,3787.1,0.03921178]
[1717088496390,4.526,3787.2,3787.1,0.03921178]
[1717088496561,2.64056,3787.1,3786.6,4.0]
[1717088496915,1.526,3786.7,3786.6,35.0]
[1717088497671,1.526,3786.8,3786.6,35.0]
[1717088498023,2.64082,3786.7,3786.6,35.0]
[1717088498146,5.64082,3786.7,3786.6,35.0]
[1717088498550,5.64082,3786.7,3785.8,4.0]
[1717088498777,1.526,3786.4,3785.9,0.40469]
[1717088499162,1.526,3786.4,3786.0,35.0]
[1717088500690,3.0,3786.6,3786.0,35.0]
[1717088500897,1.526,3786.9,3786.0,35.0]
[1717088503870,2.64075,3786.8,3786.0,35.0]
[1717088504071,3.0,3786.7,3786.1,2.64560763]
[1717088504605,3.0,3786.7,3785.9,0.40469]
[1717088504788,3.0,3786.7,3786.0,4.0]
[1717088507193,3.0,3786.7,3785.9,0.40469]
[1717088509289,1.526,3786.5,3785.9,0.40469]
[1717088509621,2.64103,3786.4,3785.7,7.3]
[1717088509922,2.64103,3786.4,3785.8,4.0]
[1717088510294,2.64103,3786.4,3785.7,7.3]
[1717088510493,3.0,3786.3,3785.7,7.3]
[1717088511027,2.64118,3786.2,3785.7,7.3]
[1717088511195,1.526,3786.1,3785.8,0.04018689]
[1717088511543,1.526,3786.1,3784.9,0.41358334]
[1717088511679,4.526,3786.1,3785.9,0.04012961]
[1717088511993,4.526,3786.1,3784.6,0.09278724]
[1717088512314,4.526,3786.1,3786.0,0.04007234]
[1717088512492,4.526,3786.1,3785.7,0.147076]
[1717088512691,2.64132,3786.0,3784.6,0.09278724]
[1717088513000,1.526,3785.7,3784.7,0.04081712]
[1717088513349,3.0,3786.1,3784.7,0.04081712]
[1717088513482,2.64121,3786.2,3784.8,0.37758944]
[1717088513680,3.0,3786.1,3784.8,0.37758944]
[1717088514033,1.526,3786.0,3784.9,0.04106416]
[1717088514896,4.16737,3786.0,3784.9,0.04106416]
[1717088515153,4.16737,3786.0,3784.6,0.09278724]
[1717088515154,3.0,3785.9,3784.6,0.09278724]
[1717088515436,1.526,3785.6,3785.0,0.041003]
[1717088515579,1.526,3785.6,3784.6,0.19044999]
[1717088515784,1.526,3785.6,3785.1,0.0409457]